fUSD/lending_fUSD_20240726
["ID","MTS","AMOUNT","RATE_DAILY","PERIOD"]
[333291918,1722034246914,-150.0,0.00010839,2]
[333291919,1722034246923,-150.0,0.00010842,2]
[333291920,1722034246933,-150.0,0.00010846,2]
[333291921,1722034246942,-150.0,0.00010846,2]
[333291922,1722034246951,-150.0,0.00010852,2]
[333291923,1722034246960,-150.0,0.00010852,2]
[333291924,1722034246969,-150.0,0.00010854,2]
[333291925,1722034246979,-150.0,0.00010854,2]
[333291926,1722034246988,-150.0,0.00010854,2]
[333291927,1722034246997,-150.0,0.00010855,2]
[333291928,1722034247006,-150.0,0.00010855,2]
[333291929,1722034247016,-150.0,0.00010856,2]
[333291930,1722034247025,-150.0,0.00010859,2]
[333291931,1722034247035,-150.0,0.00010869,2]
[333291932,1722034247044,-150.0,0.00010872,2]
[333291933,1722034247053,-150.0,0.00010872,2]
[333291934,1722034247065,-150.0,0.00010877,2]
[333291935,1722034247074,-150.0,0.00010879,2]
[333291936,1722034247084,-150.0,0.00010879,2]
[333291937,1722034247094,-150.0,0.00010881,2]
[333291938,1722034247103,-150.0,0.00010885,2]
[333291939,1722034247112,-150.0,0.00010885,2]
[333291940,1722034247121,-150.0,0.00010885,2]
[333291941,1722034247130,-150.0,0.00010887,2]
[333291942,1722034247139,-150.0,0.00010888,2]
[333291943,1722034247148,-150.0,0.0001089,2]
[333291944,1722034247157,-150.0,0.00010891,2]
[333291945,1722034247166,-150.0,0.00010892,2]
[333291946,1722034247175,-150.0,0.00010893,2]
[333291947,1722034247184,-150.0,0.00010897,2]
[333291948,1722034247194,-150.0,0.00010902,2]
[333291949,1722034247203,-150.0,0.00010912,2]
[333291950,1722034247212,-150.0,0.00010913,2]
[333291951,1722034247221,-150.0,0.00010917,2]
[333291952,1722034247230,-150.0,0.00010926,2]
[333291953,1722034247239,-150.0,0.00010928,2]
[333291954,1722034247248,-150.0,0.00010929,2]
[333291955,1722034247257,-150.0,0.00010932,2]
[333291956,1722034247266,-150.0,0.00010939,2]
[333291957,1722034247275,-150.0,0.00010942,2]
[333291958,1722034247285,-150.0,0.00010944,2]
[333291959,1722034247295,-150.0,0.00010946,2]
[333291960,1722034247304,-150.0,0.00010948,2]
[333291961,1722034247314,-150.0,0.00010953,2]
[333291962,1722034247324,-150.0,0.00010957,2]
[333291963,1722034247334,-150.0,0.00010965,2]
[333291964,1722034247344,-150.0,0.00010969,2]
[333291965,1722034247354,-150.0,0.00010969,2]
[333291966,1722034247363,-150.0,0.0001097,2]
[333291967,1722034247373,-150.0,0.00010971,2]
[333291968,1722034247383,-150.0,0.00010972,2]
[333291969,1722034247392,-150.0,0.00010973,2]
[333291970,1722034247402,-150.0,0.00010979,2]
[333291971,1722034247411,-150.0,0.00010981,2]
[333291972,1722034247421,-150.0,0.00010982,2]
[333291973,1722034247430,-150.0,0.00010984,2]
[333291974,1722034247440,-20411.46566216,0.00011,2]
[333291975,1722034247452,-373409.99258982,0.00011,2]
[333291976,1722034247463,-581.670534,0.00011,2]
[333291977,1722034247474,-1586.85710142,0.00011,2]
[333291978,1722034247909,-2353.21410219,0.00011,2]
[333291979,1722034247922,-1000.54103258,0.00011,2]
[333291980,1722034247933,-2117938.98762839,0.00011,2]
[333291981,1722034247942,-61652.05282335,0.00011,2]
[333291982,1722034247953,-80751.95639869,0.00011,2]
[333291983,1722034247964,-3885.10398628,0.00011,2]
[333291984,1722034247978,-2439.94300744,0.00011,2]
[333291985,1722034247989,-585.79333653,0.00011,2]
[333291986,1722034248001,-1766.8052,0.00011,2]
[333291987,1722034248012,-8388.26784103,0.00011,2]
[333291988,1722034248023,-4349.09017876,0.00011,2]
[333291989,1722034248068,-596.79156854,0.00011,2]
[333291990,1722034248080,-430.18684934,0.00011,2]
[333291991,1722034248091,-1740.74654837,0.00011,2]
[333291992,1722034248103,-609.53823585,0.00011,2]
[333291993,1722034248114,-3693.93006249,0.00011,2]
[333291994,1722034248125,-160165.68576328,0.00011,2]
[333291995,1722034248136,-2563.31968009,0.00011,2]
[333291996,1722034248147,-346.76974357,0.00011,2]
[333291997,1722034248159,-506.28464956,0.00011,2]
[333291998,1722034248170,-553.56974129,0.00011,2]
[333291999,1722034248181,-3666.82998998,0.00011,2]
[333292000,1722034248192,-11823.59982305,0.00011,2]
[333292001,1722034248204,-1671.17631581,0.00011,2]
[333292002,1722034248215,-345.87369942,0.00011,2]
[333292003,1722034248227,-1015.91279629,0.00011,2]
[333292004,1722034248238,-4281.62023915,0.00011,2]
[333292005,1722034248250,-11753.76194839,0.00011,2]
[333292006,1722034248262,-6985.44336142,0.00011,2]
[333292007,1722034248273,-13724.42295106,0.00011,2]
[333292008,1722034248286,-1862.13435004,0.00011,2]
[333292009,1722034248297,-29345.15677151,0.00011,2]
[333292010,1722034248309,-5143.26,0.00011,2]
[333292020,1722035326775,5100.0,0.00015,30]
[333292030,1722035432236,-296.55,8.219e-05,2]
[333292031,1722035432248,-236.27,8.741e-05,2]
[333292032,1722035432259,-1935.67,9.19e-05,2]
[333292033,1722035432271,-300.0,9.209e-05,2]
[333292034,1722035432283,-8537.91,9.21e-05,2]
[333292035,1722035432294,-173.79,9.222e-05,2]
[333292036,1722035432304,-3055.42,9.224e-05,2]
[333292037,1722035432317,-2624.24139058,9.237e-05,2]
[333292038,1722035432328,-8196.19,9.242e-05,2]
[333292039,1722035432341,-150.0,9.246e-05,2]
[333292040,1722035432352,-172.34,9.247e-05,2]
[333292041,1722035432364,-140700.57063109,9.247e-05,7]
[333292042,1722035432375,-200.0,9.262e-05,2]
[333292043,1722035432387,-150.99,9.67e-05,2]
[333292044,1722035432400,-924.92,9.703e-05,2]
[333292045,1722035432416,-1000.0,9.705e-05,2]
[333292046,1722035432427,-2500.0,9.705e-05,2]
[333292047,1722035432438,-2655.27,9.787e-05,2]
[333292048,1722035432451,-2655.27,9.789e-05,2]
[333292049,1722035432463,-22503.07,9.789e-05,2]
[333292050,1722035432476,-2655.27,9.792e-05,2]
[333292051,1722035432487,-2655.27,9.794e-05,2]
[333292052,1722035432499,-2655.27,9.797e-05,2]
[333292053,1722035432511,-2655.27,9.799e-05,2]
[333292054,1722035432522,-2655.27,9.802e-05,2]
[333292055,1722035432533,-2655.27,9.805e-05,2]
[333292056,1722035432544,-450.12,9.805e-05,2]
[333292057,1722035432557,-2655.27,9.807e-05,2]
[333292058,1722035432568,-2655.27,9.81e-05,2]
[333292059,1722035432579,-2655.27,9.812e-05,2]
[333292060,1722035432591,-2655.27,9.815e-05,2]
[333292061,1722035432604,-2655.27,9.817e-05,2]
[333292062,1722035432615,-2655.27,9.82e-05,2]
[333292063,1722035432626,-2655.27,9.823e-05,2]
[333292064,1722035432638,-2655.27,9.825e-05,2]
[333292065,1722035432648,-2655.27,9.828e-05,2]
[333292066,1722035432659,-2655.27,9.83e-05,2]
[333292067,1722035432671,-2655.27,9.833e-05,2]
[333292068,1722035432682,-2655.27,9.835e-05,2]
[333292069,1722035432693,-150.0,9.888e-05,2]
[333292070,1722035432704,-400.0,9.9e-05,3]
[333292071,1722035432715,-800.0,0.0001,3]
[333292072,1722035432727,-1200.0,0.000101,3]
[333292073,1722035432737,-420.0,0.0001013,2]
[333292074,1722035432748,-1600.0,0.000102,3]
[333292075,1722035432759,-2000.0,0.000103,3]
[333292076,1722035432771,-400.0,0.000104,3]
[333292077,1722035432782,-200.0,0.0001042,2]
[333292078,1722035432793,-296.55,0.00010432,2]
[333292079,1722035432804,-400.0,0.000105,3]
[333292080,1722035432814,-400.0,0.000106,3]
[333292081,1722035432826,-600.0,0.00010698,2]
[333292082,1722035432836,-327.775,0.00010698,2]
[333292083,1722035432847,-30094.889,0.00010698,2]
[333292084,1722035432858,-400.0,0.000107,3]
[333292085,1722035432869,-204.0,0.0001072,2]
[333292086,1722035432879,-259.34794964,0.00010741,2]
[333292087,1722035432890,-252.9867995,0.0001075,2]
[333292088,1722035432901,-150.0,0.00010763,2]
[333292089,1722035432912,-150.0,0.00010764,2]
[333292090,1722035432923,-150.0,0.00010764,2]
[333292091,1722035432934,-150.0,0.00010765,2]
[333292092,1722035432945,-150.0,0.00010777,2]
[333292093,1722035432955,-1820.00410433,0.0001078,2]
[333292094,1722035432966,-150.0,0.00010782,2]
[333292095,1722035432977,-1050.8031,0.00010788,2]
[333292096,1722035432988,-3960.5705,0.00010788,2]
[333292097,1722035432999,-150.0,0.00010791,2]
[333292098,1722035433010,-233306.3657,0.00010798,2]
[333292099,1722035433021,-252.9867995,0.000108,2]
[333292100,1722035433033,-500.0,0.000108,3]
[333292101,1722035433044,-152.82812024,0.00010815,2]
[333292102,1722035433055,-150.0,0.00010835,2]
[333292103,1722035433066,-150.0,0.00010835,2]
[333292104,1722035433078,-252.9867995,0.00010849,2]
[333292105,1722035433090,-150.0,0.00010863,2]
[333292106,1722035433102,-150.0,0.00010873,2]
[333292107,1722035433114,-150.0,0.00010876,2]
[333292108,1722035433125,-150.0,0.00010885,2]
[333292109,1722035433137,-252.9867995,0.00010899,2]
[333292110,1722035433148,-181.25355673,0.00010899,2]
[333292111,1722035433161,-181.25355671,0.00010899,2]
[333292112,1722035433172,-181.25355671,0.00010899,2]
[333292113,1722035433183,-181.25355671,0.00010899,2]
[333292114,1722035433195,-181.25355671,0.00010899,2]
[333292115,1722035433207,-181.25355671,0.00010899,2]
[333292116,1722035433219,-181.25355671,0.00010899,2]
[333292117,1722035433231,-181.25355671,0.00010899,2]
[333292118,1722035433242,-20886.74561029,0.000109,2]
[333292119,1722035433253,-23272.2304,0.000109,2]
[333292120,1722035433265,-2259.78495756,0.000109,2]
[333292121,1722035433277,-2259.78495753,0.000109,2]
[333292122,1722035433288,-2259.78495753,0.000109,2]
[333292123,1722035433300,-2259.78495753,0.000109,2]
[333292124,1722035433312,-2259.78495753,0.000109,2]
[333292125,1722035433324,-1139.586,0.000109,2]
[333292126,1722035433336,-2259.78495753,0.000109,2]
[333292127,1722035433347,-2259.78495753,0.000109,2]
[333292128,1722035433358,-2259.78495753,0.000109,2]
[333292129,1722035433370,-1000.0,0.000109,2]
[333292130,1722035433381,-169.84462217,0.000109,2]
[333292131,1722035433393,-166.339282,0.000109,2]
[333292132,1722035433404,-2010.59021711,0.000109,2]
[333292133,1722035433415,-150.0,0.00010905,2]
[333292134,1722035433427,-150.0,0.00010906,2]
[333292135,1722035433438,-1254.0,0.0001091,2]
[333292136,1722035433450,-461.455,0.0001091,2]
[333292137,1722035433461,-1829.0,0.0001091,2]
[333292139,1722035433472,-1580.0,0.0001091,2]
[333292141,1722035433485,-801.0,0.0001091,2]
[333292143,1722035433494,-193.989,0.0001091,2]
[333292146,1722035433814,-150.0,0.0001091,2]
[333292147,1722035433825,-2383.0,0.0001091,2]
[333292148,1722035433835,-550.0,0.0001091,2]
[333292149,1722035433845,-2026.278,0.0001091,2]
[333292150,1722035433855,-3283.0,0.0001091,2]
[333292151,1722035433864,-5827.0,0.0001091,2]
[333292152,1722035433874,-863.395,0.0001091,2]
[333292153,1722035433884,-1668.0,0.0001091,2]
[333292154,1722035433894,-5120.0,0.0001091,2]
[333292155,1722035433903,-150.0,0.0001091,2]
[333292156,1722035433913,-36804.217,0.0001091,2]
[333292157,1722035433923,-150.0,0.00010915,2]
[333292158,1722035433933,-150.0,0.00010925,2]
[333292159,1722035433943,-2720.0,0.00010947,6]
[333292160,1722035433952,-204.0,0.0001095,2]
[333292161,1722035433962,-246.09095234,0.00010955,2]
[333292162,1722035433972,-500.0,0.00010958,2]
[333292163,1722035433981,-500.0,0.00010958,2]
[333292164,1722035433991,-500.0,0.00010958,2]
[333292165,1722035434001,-613.35106498,0.00010958,2]
[333292166,1722035434011,-500.0,0.00010958,2]
[333292167,1722035434021,-500.0,0.00010958,2]
[333292168,1722035434030,-500.0,0.00010958,2]
[333292169,1722035434040,-500.0,0.00010958,2]
[333292170,1722035434050,-500.0,0.00010958,2]
[333292171,1722035434060,-500.0,0.00010958,2]
[333292172,1722035434070,-500.0,0.00010958,2]
[333292173,1722035434080,-500.0,0.00010958,2]
[333292174,1722035434090,-500.0,0.00010958,2]
[333292175,1722035434100,-500.0,0.00010958,2]
[333292176,1722035434110,-500.0,0.00010958,2]
[333292177,1722035434120,-500.0,0.00010958,2]
[333292178,1722035434130,-500.0,0.00010958,2]
[333292179,1722035434140,-611.42,0.00010958,2]
[333292180,1722035434150,-500.0,0.00010958,2]
[333292181,1722035434160,-500.0,0.00010958,2]
[333292182,1722035434170,-431.35170557,0.00010958,2]
[333292183,1722035434180,-500.0,0.00010958,2]
[333292184,1722035434189,-500.0,0.00010958,2]
[333292185,1722035434199,-500.0,0.00010958,2]
[333292186,1722035434210,-500.0,0.00010958,2]
[333292187,1722035434220,-500.0,0.00010958,2]
[333292188,1722035434230,-500.0,0.00010958,2]
[333292189,1722035434240,-500.0,0.00010958,2]
[333292190,1722035434249,-500.0,0.00010958,2]
[333292191,1722035434260,-500.0,0.00010958,2]
[333292192,1722035434269,-159.79663308,0.00010958,2]
[333292193,1722035434285,-340.20336692,0.00010958,2]
[333292194,1722035434295,-500.0,0.00010958,2]
[333292195,1722035434305,-853.8,0.00010958,2]
[333292196,1722035434315,-500.0,0.00010958,2]
[333292197,1722035434325,-500.0,0.00010958,2]
[333292198,1722035434335,-510.96935114,0.00010958,2]
[333292199,1722035434344,-500.0,0.00010958,2]
[333292200,1722035434354,-500.0,0.00010958,2]
[333292201,1722035434364,-500.0,0.00010958,2]
[333292202,1722035434373,-500.0,0.00010958,2]
[333292203,1722035434383,-500.0,0.00010958,2]
[333292204,1722035434394,-560.03676184,0.00010958,2]
[333292205,1722035434403,-500.0,0.00010958,2]
[333292206,1722035434413,-500.0,0.00010958,2]
[333292207,1722035434423,-500.0,0.00010958,2]
[333292208,1722035434433,-500.0,0.00010958,2]
[333292209,1722035434443,-500.0,0.00010958,2]
[333292210,1722035434453,-243.39576135,0.00010958,2]
[333292211,1722035434463,-500.0,0.00010958,2]
[333292212,1722035434472,-500.0,0.00010958,2]
[333292213,1722035434482,-500.0,0.00010958,2]
[333292214,1722035434492,-500.0,0.00010958,2]
[333292215,1722035434501,-500.0,0.00010958,2]
[333292216,1722035434511,-500.0,0.00010958,2]
[333292217,1722035434520,-500.0,0.00010958,2]
[333292218,1722035434530,-311.65292893,0.00010958,2]
[333292219,1722035434540,-500.0,0.00010958,2]
[333292220,1722035434550,-500.0,0.00010958,2]
[333292221,1722035434560,-500.0,0.00010958,2]
[333292222,1722035434569,-500.0,0.00010958,2]
[333292223,1722035434579,-500.0,0.00010958,2]
[333292224,1722035434589,-500.0,0.00010958,2]
[333292225,1722035434602,-500.0,0.00010958,2]
[333292226,1722035434611,-504.64797785,0.00010958,2]
[333292227,1722035434621,-500.0,0.00010958,2]
[333292228,1722035434631,-500.0,0.00010958,2]
[333292229,1722035434640,-500.0,0.00010958,2]
[333292230,1722035434651,-500.0,0.00010958,2]
[333292231,1722035434660,-500.0,0.00010958,2]
[333292232,1722035434671,-500.0,0.00010958,2]
[333292233,1722035434682,-500.0,0.00010958,2]
[333292234,1722035434692,-500.0,0.00010958,2]
[333292235,1722035434702,-506.72368767,0.00010958,2]
[333292236,1722035434712,-500.0,0.00010958,2]
[333292237,1722035434721,-500.0,0.00010958,2]
[333292238,1722035434731,-500.0,0.00010958,2]
[333292239,1722035434742,-500.0,0.00010958,2]
[333292240,1722035434752,-500.0,0.00010958,2]
[333292241,1722035434761,-500.0,0.00010958,2]
[333292242,1722035434771,-353.38,0.00010958,2]
[333292243,1722035434782,-3168.0,0.00010958,2]
[333292244,1722035434791,-500.0,0.00010958,2]
[333292245,1722035434800,-500.0,0.00010958,2]
[333292246,1722035434810,-500.0,0.00010958,2]
[333292247,1722035434820,-500.0,0.00010958,2]
[333292248,1722035434830,-362.05459549,0.00010958,2]
[333292249,1722035434840,-539.24512319,0.00010958,2]
[333292250,1722035434850,-500.0,0.00010958,2]
[333292251,1722035434861,-500.0,0.00010958,2]
[333292252,1722035434870,-341.09421481,0.00010958,2]
[333292253,1722035434880,-510.00862253,0.00010958,2]
[333292254,1722035434889,-503.96510455,0.00010958,2]
[333292255,1722035434899,-500.0,0.00010958,2]
[333292256,1722035434909,-500.0,0.00010958,2]
[333292257,1722035434920,-500.0,0.00010958,2]
[333292258,1722035434930,-500.0,0.00010958,2]
[333292259,1722035434941,-500.0,0.00010958,2]
[333292260,1722035434950,-500.0,0.00010958,2]
[333292261,1722035434960,-500.0,0.00010958,2]
[333292262,1722035434969,-500.0,0.00010958,2]
[333292263,1722035434978,-164.12309325,0.00010958,2]
[333292264,1722035434988,-512.54484417,0.00010958,2]
[333292265,1722035434998,-508.60722251,0.00010958,2]
[333292266,1722035435008,-500.0,0.00010958,2]
[333292267,1722035435018,-500.0,0.00010958,2]
[333292268,1722035435027,-500.0,0.00010958,2]
[333292269,1722035435037,-500.0,0.00010958,2]
[333292270,1722035435047,-500.0,0.00010958,2]
[333292271,1722035435056,-568.76,0.00010958,2]
[333292272,1722035435066,-568.76,0.00010958,2]
[333292273,1722035435075,-502.90961791,0.00010958,2]
[333292274,1722035435085,-501.7610117,0.00010958,2]
[333292275,1722035435095,-500.0,0.00010958,2]
[333292276,1722035435104,-500.0,0.00010958,2]
[333292277,1722035435113,-500.0,0.00010958,2]
[333292278,1722035435123,-500.0,0.00010958,2]
[333292279,1722035435133,-500.0,0.00010958,2]
[333292280,1722035435142,-500.0,0.00010958,2]
[333292281,1722035435152,-500.0,0.00010958,2]
[333292282,1722035435162,-500.0,0.00010958,2]
[333292283,1722035435171,-500.0,0.00010958,2]
[333292284,1722035435181,-501.83288723,0.00010958,2]
[333292285,1722035435191,-500.0,0.00010958,2]
[333292286,1722035435200,-500.0,0.00010958,2]
[333292287,1722035435210,-500.0,0.00010958,2]
[333292288,1722035435220,-508.63752007,0.00010958,2]
[333292289,1722035435230,-500.0,0.00010958,2]
[333292290,1722035435240,-500.0,0.00010958,2]
[333292291,1722035435249,-500.0,0.00010958,2]
[333292292,1722035435258,-500.0,0.00010958,2]
[333292293,1722035435268,-500.0,0.00010958,2]
[333292294,1722035435278,-500.0,0.00010958,2]
[333292295,1722035435288,-500.0,0.00010958,2]
[333292296,1722035435298,-501.19775829,0.00010958,2]
[333292297,1722035435310,-500.0,0.00010958,2]
[333292298,1722035435319,-501.93574853,0.00010958,2]
[333292299,1722035435329,-500.0,0.00010958,2]
[333292300,1722035435339,-500.0,0.00010958,2]
[333292301,1722035435349,-547.18852829,0.00010958,2]
[333292302,1722035435359,-502.0757694,0.00010958,2]
[333292303,1722035435369,-503.77441586,0.00010958,2]
[333292304,1722035435380,-506.66897143,0.00010958,2]
[333292305,1722035435390,-500.0,0.00010958,2]
[333292306,1722035435399,-500.0,0.00010958,2]
[333292307,1722035435409,-500.0,0.00010958,2]
[333292308,1722035435419,-512.83926109,0.00010958,2]
[333292309,1722035435429,-500.0,0.00010958,2]
[333292310,1722035435439,-501.92955105,0.00010958,2]
[333292311,1722035435449,-500.0,0.00010958,2]
[333292312,1722035435458,-345.57,0.00010958,2]
[333292313,1722035435468,-500.0,0.00010958,2]
[333292314,1722035435478,-500.0,0.00010958,2]
[333292315,1722035435488,-500.0,0.00010958,2]
[333292316,1722035435497,-508.41210082,0.00010958,2]
[333292317,1722035435507,-500.0,0.00010958,2]
[333292318,1722035435517,-500.0,0.00010958,2]
[333292319,1722035435527,-512.29,0.00010958,2]
[333292320,1722035435537,-500.0,0.00010958,2]
[333292321,1722035435546,-500.0,0.00010958,2]
[333292322,1722035435556,-580.03943396,0.00010958,2]
[333292323,1722035435566,-500.0,0.00010958,2]
[333292324,1722035435576,-500.0,0.00010958,2]
[333292325,1722035435587,-500.0,0.00010958,2]
[333292326,1722035435601,-500.0,0.00010958,2]
[333292327,1722035435611,-501.57812983,0.00010958,2]
[333292328,1722035435620,-500.0,0.00010958,2]
[333292329,1722035435630,-500.0,0.00010958,2]
[333292330,1722035435642,-528.7005071,0.00010958,2]
[333292331,1722035435652,-500.0,0.00010958,2]
[333292332,1722035435662,-281.23,0.00010958,2]
[333292333,1722035435673,-503.71240934,0.00010958,2]
[333292334,1722035435682,-500.0,0.00010958,2]
[333292335,1722035435692,-500.0,0.00010958,2]
[333292336,1722035435702,-500.0,0.00010958,2]
[333292337,1722035435712,-579.58,0.00010958,2]
[333292338,1722035435723,-510.49378365,0.00010958,2]
[333292339,1722035435733,-500.0,0.00010958,2]
[333292340,1722035435742,-505.98972391,0.00010958,2]
[333292341,1722035435751,-523.28917337,0.00010958,2]
[333292342,1722035435762,-500.0,0.00010958,2]
[333292343,1722035435772,-500.0,0.00010958,2]
[333292344,1722035435782,-500.0,0.00010958,2]
[333292345,1722035435792,-500.0,0.00010958,2]
[333292346,1722035435802,-500.0,0.00010958,2]
[333292347,1722035435812,-468.02,0.00010958,2]
[333292348,1722035435821,-500.0,0.00010958,2]
[333292349,1722035435831,-500.0,0.00010958,2]
[333292350,1722035435840,-505.53634467,0.00010958,2]
[333292351,1722035435850,-500.0,0.00010958,2]
[333292352,1722035435859,-500.0,0.00010958,2]
[333292353,1722035435869,-500.0,0.00010958,2]
[333292354,1722035435879,-500.0,0.00010958,2]
[333292355,1722035435888,-500.0,0.00010958,2]
[333292356,1722035435898,-500.0,0.00010958,2]
[333292357,1722035435908,-517.97,0.00010958,2]
[333292358,1722035435917,-515.61452366,0.00010958,2]
[333292359,1722035435926,-500.0,0.00010958,2]
[333292360,1722035435936,-500.0,0.00010958,2]
[333292361,1722035435946,-255.9183275,0.00010958,2]
[333292362,1722035435954,-500.0,0.00010958,2]
[333292363,1722035435964,-500.0,0.00010958,2]
[333292364,1722035435974,-500.0,0.00010958,2]
[333292365,1722035435983,-507.16568029,0.00010958,2]
[333292366,1722035435993,-527.45,0.00010958,2]
[333292367,1722035436003,-500.0,0.00010958,2]
[333292368,1722035436013,-500.0,0.00010958,2]
[333292369,1722035436022,-2219.06,0.00010958,2]
[333292370,1722035436032,-500.0,0.00010958,2]
[333292371,1722035436046,-500.0,0.00010958,2]
[333292372,1722035436056,-2219.06,0.00010958,2]
[333292373,1722035436065,-421.82579939,0.00010958,2]
[333292374,1722035436075,-500.0,0.00010958,2]
[333292375,1722035436085,-507.21051924,0.00010958,2]
[333292376,1722035436095,-500.0,0.00010958,2]
[333292377,1722035436104,-500.0,0.00010958,2]
[333292378,1722035436117,-500.0,0.00010958,2]
[333292379,1722035436127,-217.63,0.00010958,2]
[333292380,1722035436137,-512.36,0.00010958,2]
[333292381,1722035436147,-500.0,0.00010958,2]
[333292382,1722035436157,-518.66100921,0.00010958,2]
[333292383,1722035436167,-500.0,0.00010958,2]
[333292384,1722035436176,-500.0,0.00010958,2]
[333292385,1722035436186,-500.0,0.00010958,2]
[333292386,1722035436196,-500.0,0.00010958,2]
[333292387,1722035436206,-500.0,0.00010958,2]
[333292388,1722035436215,-500.0,0.00010958,2]
[333292389,1722035436225,-503.52067894,0.00010958,2]
[333292390,1722035436235,-543.30431769,0.00010958,2]
[333292391,1722035436245,-500.0,0.00010958,2]
[333292392,1722035436255,-500.0,0.00010958,2]
[333292393,1722035436264,-262.26,0.00010958,2]
[333292394,1722035436274,-500.0,0.00010958,2]
[333292395,1722035436285,-500.0,0.00010958,2]
[333292396,1722035436295,-242.769668,0.00010958,2]
[333292397,1722035436305,-500.0,0.00010958,2]
[333292398,1722035436315,-500.0,0.00010958,2]
[333292399,1722035436325,-500.0,0.00010958,2]
[333292400,1722035436334,-500.0,0.00010958,2]
[333292401,1722035436344,-500.0,0.00010958,2]
[333292402,1722035436353,-265.92,0.00010958,2]
[333292403,1722035436363,-150.0,0.00010958,2]
[333292404,1722035436373,-500.0,0.00010958,2]
[333292405,1722035436382,-150.0,0.00010958,2]
[333292406,1722035436392,-504.59706832,0.00010958,2]
[333292407,1722035436402,-500.0,0.00010958,2]
[333292408,1722035436412,-500.0,0.00010958,2]
[333292409,1722035436422,-500.0,0.00010958,2]
[333292410,1722035436431,-500.0,0.00010958,2]
[333292411,1722035436441,-500.0,0.00010958,2]
[333292412,1722035436451,-500.0,0.00010958,2]
[333292413,1722035436461,-500.0,0.00010958,2]
[333292414,1722035436472,-500.0,0.00010958,2]
[333292415,1722035436482,-561.81,0.00010958,2]
[333292416,1722035436491,-500.0,0.00010958,2]
[333292417,1722035436501,-500.0,0.00010958,2]
[333292418,1722035436510,-500.0,0.00010958,2]
[333292419,1722035436520,-500.0,0.00010958,2]
[333292420,1722035436530,-510.56002071,0.00010958,2]
[333292421,1722035436541,-500.0,0.00010958,2]
[333292422,1722035436550,-500.0,0.00010958,2]
[333292423,1722035436560,-500.0,0.00010958,2]
[333292424,1722035436570,-500.0,0.00010958,2]
[333292425,1722035436579,-500.0,0.00010958,2]
[333292426,1722035436589,-500.0,0.00010958,2]
[333292427,1722035436603,-500.0,0.00010958,2]
[333292428,1722035436613,-500.0,0.00010958,2]
[333292429,1722035436623,-517.46,0.00010958,2]
[333292430,1722035436633,-500.0,0.00010958,2]
[333292431,1722035436643,-500.0,0.00010958,2]
[333292432,1722035436653,-500.0,0.00010958,2]
[333292433,1722035436662,-500.0,0.00010958,2]
[333292434,1722035436672,-500.0,0.00010958,2]
[333292435,1722035436683,-500.0,0.00010958,2]
[333292436,1722035436693,-500.0,0.00010958,2]
[333292437,1722035436703,-500.0,0.00010958,2]
[333292438,1722035436713,-500.0,0.00010958,2]
[333292439,1722035436723,-500.0,0.00010958,2]
[333292440,1722035436732,-514.7904447,0.00010958,2]